[Event "13th KIIT Festival-A 2022"]
[Site "Bhubaneswar"]
[Date "2022.05.24"]
[Round "3.6"]
[White "Kiran, Manisha Mohanty"]
[Black "Nikitenko, Mihail"]
[Result "0-1"]
[ECO "C15"]
[WhiteElo "2098"]
[BlackElo "2479"]
[Annotator "TA"]
[PlyCount "216"]
[EventDate "2022.05.15"]
[EventType "swiss"]
[EventCountry "IND"]
[SourceTitle "playchess.com"]
[Source "ChessBase"]
[SourceQuality "1"]
[TimeControl "5400+30"]

{[%evp 16,216,34,23,17,-10,14,-84,0,-30,-23,-84,-58,-64,-49,-47,-42,-63,-39,-39,-48,-47,-28,-18,-13,-49,-31,-27,-31,-32,-21,-25,-26,-41,-25,-34,-24,-65,0,0,-8,-9,0,0,9,8,8,12,64,0,37,31,43,31,17,23,29,33,43,5,30,0,31,0,0,0,0,0,0,0,35,26,35,8,8,0,0,0,0,0,0,0,0,0,0,0,0,0,0,-29,-29,-29,-29,-29,-29,-29,-29,-29,-29,-29,-29,-29,-29,-29,-29,-29,-29,-29,-29,-29,-29,-29,-29,-29,-29,-29,-29,-29,-29,-29,0,-29,-29,-29,-29,-29,-29,-29,-29,-29,-29,-29,-29,-29,-29,-29,-29,-29,-29,-29,-29,-29,-29,-29,-29,-29,-29,-29,-29,-47,-47,-48,-48,-48,-48,-48,-48,-48,-48,-48,-48,-48,-48,-48,-48,-55,-48,-48,-29,-29,-29,-29,-29,-29,-29,-29,-29,-29,-29,-29,-29,-36,-36,-36,-36,-36,-36,-36,-36,-36,-36,-48,-48,-48,-48,-48,-55,-29986,-29987,-29987,-36,-29997,-29998]} 1. e4 {[%emt 0:01:27]} e6 {[%emt 0:00:07]} 2. d4 {[%emt 0:00:06]} d5 {[%emt 0:00:05]} 3. Nc3 {[%emt 0:00:07]} Bb4 {[%emt 0:00:05]} 4. a3 {[%emt 0:00:05]} Bxc3+ {[%emt 0:00:09]} 5. bxc3 {[%emt 0:00:05]} dxe4 {[%emt 0:00:04]} 6. Qg4 {[%emt 0:00:11]} Nf6 {[%emt 0:00:08]} 7. Qxg7 {[%emt 0:00:11]} Rg8 {[%emt 0:00:08]} 8. Qh6 {[%emt 0:00:03]} Nbd7 {[%emt 0:00:06]} 9. Bg5 {[%emt 0:01:37]} Qe7 {[%emt 0:01:36] C15: French: 3 Nc3 Bb4: Unusual White 4th moves.} 10. Ne2 {[%emt 0:03:35]} b6 {[%emt 0:00:52]} 11. Nf4 {[%emt 0:06:57]} (11. Qh4 $11) 11... Bb7 {[%emt 0:03:34]} (11... Ng4 $17 12. Bxe7 Nxh6) 12. Qh4 {[%emt 0:00:28]} h6 {[%emt 0:01:58] [#]} 13. Bxf6 $146 {[%emt 0:00:45]} (13. Bxh6 $2 Ng4 14. Qxe7+ Kxe7 15. Nxe6 Nxh6 $19) (13. Qxh6 $11 {keeps the balance.} Ng4 14. Bxe7 Nxh6 15. Bh4) ({Predecessor:} 13. Qxh6 O-O-O 14. Qh4 e3 15. f3 Rh8 16. Nh5 Qd6 17. Bxf6 Nxf6 18. Qxf6 Rxh5 19. Bd3 Rxh2 20. Rxh2 {½-½ (32) Estevez Morales,G (2420)-Vilela de Acuna,J (2440) Cienfuegos 1991}) 13... Nxf6 {[%emt 0:00:25]} 14. Bb5+ {[%emt 0:02:00]} c6 {[%emt 0:00:05]} 15. Be2 {[%emt 0:00:06]} e5 {[%emt 0:02:49]} 16. Nh5 {[%emt 0:17:29]} Nxh5 {[%emt 0:00:09]} 17. Qxh5 {[%emt 0:00:06]} exd4 {[%emt 0:01:18]} 18. cxd4 {[%emt 0:00:11]} Qf6 {[%emt 0:03:09]} 19. O-O {[%emt 0:06:35]} O-O-O {[%emt 0:00:07]} 20. c3 {[%emt 0:00:57]} Rd5 {[%emt 0:02:00]} 21. Qh3+ {[%emt 0:00:26]} Kb8 {[%emt 0:00:04]} 22. Qe3 {[%emt 0:05:52]} c5 {[%emt 0:00:04][%cal Rc5d4]} 23. Rad1 {[%emt 0:12:27]} h5 {[%emt 0:00:19][%cal Bh6h5,Bh5h4][%mdl 32]} 24. g3 {[%emt 0:04:02]} h4 {[%emt 0:00:59]} 25. dxc5 {[%emt 0:04:40]} Rxc5 {[%emt 0:00:26]} 26. c4 {[%emt 0:00:07]} Qg5 {[%emt 0:03:50] Black is more active.} (26... Qe5 $15) 27. Qxg5 $11 {[%emt 0:06:06]} Rcxg5 {[%emt 0:00:04]} 28. Rd7 {[%emt 0:01:02]} f5 {[%emt 0:00:24]} 29. Rh7 {[%emt 0:07:21]} hxg3 {[%emt 0:02:25]} 30. fxg3 {[%emt 0:00:07]} e3 {[%emt 0:01:45]} 31. Bf3 {[%emt 0:12:12]} Ba6 {[%emt 0:00:22]} ({Black should try} 31... Bxf3 $11 32. Rxf3 Re8) 32. Be2 {[%emt 0:00:20]} (32. Rf7 $14) 32... Re8 {[%emt 0:03:02][%cal Of5f4]} 33. Rf7 {[%emt 0:00:12]} Bc8 $1 {[%emt 0:00:03]} 34. c5 {[%emt 0:00:28]} Be6 {[%emt 0:02:03]} 35. Rh7 {[%emt 0:00:09] Strongly threatening c6.} Bd5 {[%emt 0:03:47]} 36. cxb6 {[%emt 0:00:22]} axb6 {[%emt 0:00:03]} 37. Rb1 {[%emt 0:00:29]} (37. Rh4 $5 {[%cal Rf1b1]}) 37... Re6 {[%emt 0:00:38]} (37... f4 $5) 38. Kf1 {[%emt 0:04:10]} (38. Rh4 $5 {[%cal Rb1b5]}) 38... Rc6 {[%emt 0:06:44]} 39. Re7 {[%emt 0:00:53]} Be4 {[%emt 0:00:45]} 40. Rd1 {[%emt 0:00:14]} Rg8 {[%emt 0:00:09] Inhibits Re8+.} 41. a4 {[%emt 0:02:55]} Rh6 {[%emt 0:00:56]} 42. h4 {[%emt 0:00:15]} Rc6 {[%emt 0:03:23]} 43. g4 {[%emt 0:00:24]} Rc7 {[%emt 0:03:40]} 44. Re6 {[%emt 0:01:30]} Bb7 {[%emt 0:01:03]} 45. gxf5 {[%emt 0:01:37]} Rcg7 {[%emt 0:01:11][%csl Gg8][%cal Rg7g1] [#]} 46. Rg6 {[%emt 0:00:07] Inhibits Rg1+.} (46. Rxe3 $2 Rg1+ 47. Kf2 R8g2#) 46... Rxg6 {[%emt 0:00:03]} 47. fxg6 {[%emt 0:00:06]} Rxg6 {[%emt 0:00:02][%mdl 4096] Endgame KRB-KRB} 48. h5 {[%emt 0:00:50]} Rg3 {[%emt 0:00:24] Threatens to win with ...Bg2+.} 49. Rd6 {[%emt 0:00:19]} Rh3 {[%emt 0:02:19][%cal Rh3h1]} 50. Bg4 {[%emt 0:00:15] Rd8+ would kill now.} Rh4 {[%emt 0:00:30]} 51. Rg6 {[%emt 0:00:57]} Ba6+ {[%emt 0:00:46]} 52. Kg2 {[%emt 0:00:17]} (52. Be2 $5 {[%cal Rg6b6]} Bb7 53. Rg8+ Kc7 54. Rg7+ Kb8 55. Rg8+ Kc7 56. Rg7+ Kb8 57. Rg8+ $11) 52... e2 {[%emt 0:00:06]} 53. Bxe2 {[%emt 0:00:36]} Bxe2 {[%emt 0:00:04]} 54. Rxb6+ {[%emt 0:00:05] KRB-KR} Kc7 {[%emt 0:00:05]} 55. Re6 {[%emt 0:00:48]} Bxh5 {[%emt 0:00:25]} 56. a5 {[%emt 0:00:25]} Kd7 {[%emt 0:00:05]} 57. Rf6 {[%emt 0:00:24]} Ra4 {[%emt 0:00:50]} 58. a6 {[%emt 0:00:08]} Ra3 {[%emt 0:00:25]} 59. Rh6 {[%emt 0:00:18]} Bf7 {[%emt 0:00:04]} 60. Kf2 {[%emt 0:00:15]} Be6 {[%emt 0:00:10]} 61. Rh7+ {[%emt 0:00:08]} Kd6 {[%emt 0:00:04]} 62. a7 {[%emt 0:00:50]} Bd5 {[%emt 0:00:09]} 63. Ke2 {[%emt 0:00:19]} Ke5 {[%emt 0:00:04]} 64. Kd2 {[%emt 0:01:04]} Kd4 {[%emt 0:00:04]} 65. Rd7 {[%emt 0:00:36]} Ra2+ {[%emt 0:01:11]} 66. Kd1 {[%emt 0:00:10]} Ke4 {[%emt 0:00:21]} 67. Kc1 {[%emt 0:00:20]} Kd4 {[%emt 0:00:25]} 68. Kb1 {[%emt 0:00:38][%cal Od7d5] White threatens Rxd5+! and mate.} Ra5 {[%emt 0:00:13]} 69. Kc2 {[%emt 0:00:27]} Kc5 {[%emt 0:00:15]} 70. Kc3 {[%emt 0:00:20]} Kc6 {[%emt 0:00:07]} 71. Rh7 {[%emt 0:00:50]} Be6 {[%emt 0:00:04]} 72. Rh6 {[%emt 0:01:06]} Kd6 {[%emt 0:00:04]} 73. Rh7 {[%emt 0:00:10]} Bd7 {[%emt 0:00:03]} 74. Rh6+ {[%emt 0:00:24]} Kc7 {[%emt 0:00:04]} 75. Rh7 {[%emt 0:00:27]} Rxa7 {[%emt 0:00:05]} (75... Ra4 {seems wilder.} 76. Rh8 Ra3+ 77. Kd4 Rxa7 78. Rh7 Kd6) 76. Kd4 {[%emt 0:00:10]} Kd6 {[%emt 0:00:04]} 77. Rh6+ {[%emt 0:00:18]} Be6 {[%emt 0:00:03]} 78. Rh8 {[%emt 0:00:07]} Ra4+ {[%emt 0:00:04]} 79. Kd3 {[%emt 0:00:25]} Ke5 {[%emt 0:00:34]} 80. Re8 {[%emt 0:00:20]} Ra3+ {[%emt 0:00:08]} 81. Kd2 {[%emt 0:00:08]} Kd5 {[%emt 0:00:13]} 82. Rd8+ {[%emt 0:00:24]} Kc4 {[%emt 0:00:06]} 83. Ke2 {[%emt 0:01:13]} Bd5 {[%emt 0:00:05]} 84. Kd2 {[%emt 0:00:23]} Kd4 {[%emt 0:00:03]} 85. Rd7 {[%emt 0:00:22]} Ra2+ {[%emt 0:00:09]} 86. Kd1 {[%emt 0:00:06]} Rh2 {[%emt 0:01:33]} 87. Rd8 {[%emt 0:00:09]} Ke4 {[%emt 0:01:31]} 88. Rd7 {[%emt 0:00:35]} Bc4 {[%emt 0:00:24]} 89. Rd2 {[%emt 0:01:33]} Rh8 {[%emt 0:00:07]} 90. Rd7 {[%emt 0:00:16]} Bb5 {[%emt 0:00:37]} 91. Rd6 {[%emt 0:00:28]} Bd3 {[%emt 0:01:33]} 92. Kd2 {[%emt 0:00:18]} Rh2+ {[%emt 0:00:17]} 93. Kc3 {[%emt 0:00:09]} Rc2+ {[%emt 0:00:02]} 94. Kb3 {[%emt 0:00:08]} Rc8 {[%emt 0:00:04]} 95. Kb4 {[%emt 0:01:30]} Bc4 {[%emt 0:00:07]} 96. Rh6 {[%emt 0:01:35]} Bd5 {[%emt 0:00:03]} 97. Rh4+ {[%emt 0:00:14]} Ke5 {[%emt 0:00:02]} 98. Rh5+ {[%emt 0:01:04]} Kd4 {[%emt 0:00:05]} 99. Rh4+ {[%emt 0:00:19]} Be4 {[%emt 0:00:03]} 100. Rg4 {[%emt 0:00:49]} Rb8+ {[%emt 0:00:03]} 101. Ka4 {[%emt 0:00:11]} Kd5 {[%emt 0:00:05]} 102. Rh4 {[%emt 0:00:13]} Bc2+ {[%emt 0:02:46]} 103. Ka3 {[%emt 0:00:13]} Kc5 {[%emt 0:00:22]} 104. Ka2 {[%emt 0:00:40]} Bd3 {[%emt 0:00:24]} 105. Ka3 {[%emt 0:02:05]} Bc4 {[%emt 0:00:23] ( -> ...Rb3+)} 106. Rf4 $2 {[%emt 0:00:32][%mdl 8192] [#]} (106. Rh5+ $15 Bd5 107. Rh3) 106... Rb3+ {[%emt 0:03:47]} 107. Ka4 {[%emt 0:00:08]} Re3 $2 {[%emt 0:00:52]} (107... Rg3 {mates} 108. Rf5+ Bd5 109. Re5 Rg8 110. Ka3 Rg2 111. Rxd5+ Kxd5 112. Kb4 Rg3 113. Kb5 Rb3+ 114. Ka4 Kc4 115. Ka5 Kc5 116. Ka6 Rb2 117. Ka7 Kc6 118. Ka8 Kc7 119. Ka7 Ra2#) 108. Rh4 $2 {[%emt 0:00:24][%mdl 8192]} (108. Rf5+ $15 Bd5 109. Rg5 Re8 110. Ka3 Re2 111. Rxd5+ Kxd5 112. Kb4 Re3 113. Kb5 Rb3+ 114. Ka4 Kc4 115. Ka5 Kc5 116. Ka6 Rb2 117. Ka7 Kc6 118. Ka8 Kc7 119. Ka7 Ra2#) 108... Bb5+ {[%emt 0:00:06] Weighted Error Value: White=0.14 (very precise) /Black=0.11 (very precise)} 0-1

[Event "13th KIIT Festival-A 2022"]
[Site "Bhubaneswar"]
[Date "2022.05.24"]
[Round "3.7"]
[White "Praloy Sahoo"]
[Black "Mirzoev, Azer"]
[Result "0-1"]
[ECO "B13"]
[WhiteElo "2065"]
[BlackElo "2476"]
[Annotator "TA"]
[PlyCount "120"]
[EventDate "2022.05.15"]
[EventType "swiss"]
[EventCountry "IND"]
[SourceTitle "playchess.com"]
[Source "ChessBase"]
[SourceQuality "1"]
[TimeControl "5400+30"]

{[%evp 14,120,10,2,6,2,16,0,0,0,0,0,-6,-20,-26,-31,-40,-41,-41,-43,-37,-31,-30,-31,-13,-23,-17,-37,-14,-14,-4,-30,-4,-36,-22,-49,-27,-25,-43,-39,-18,-120,-109,-120,-120,-128,-127,-112,-98,-113,-108,-106,-122,-135,-133,-165,-148,-154,-150,-160,-155,-163,-151,-200,-202,-297,-260,-264,-277,-277,-274,-258,-255,-313,-214,-213,-218,-214,-183,-208,-208,-218,-191,-388,0,-1091,-786,-29975,-29973,-29972,-29970,-29970,-29971,-29995,-29972,-29965,-6406,-29965,-29966,-29966,-29967,-29965,-29968,-29966,-29967,-29959,-29938,-2087,-1363]} 1. e4 {[%emt 0:00:05]} c6 {[%emt 0:00:06]} 2. d4 {[%emt 0:01:01]} d5 {[%emt 0:00:06]} 3. exd5 {[%emt 0:00:04]} cxd5 {[%emt 0:00:06]} 4. Bd3 {[%emt 0:00:17]} Nc6 {[%emt 0:00:09]} 5. c3 {[%emt 0:00:16]} Nf6 {[%emt 0:00:06]} 6. h3 {[%emt 0:00:51]} g6 {[%emt 0:00:09]} 7. Nf3 {[%emt 0:01:09]} Bf5 {[%emt 0:00:14]} 8. O-O {[%emt 0:01:56] 8.Be2 deserves study.} Bxd3 {[%emt 0:00:15] B13: Caro-Kann: Exchange Variation and Panov-Botvinnik Attack.} 9. Qxd3 {[%emt 0:00:05]} Bg7 {[%emt 0:00:11]} 10. Ne5 {[%emt 0:19:45]} O-O {[%emt 0:00:41] [#] The position is equal.} 11. Nd2 $146 {[%emt 0:18:26]} ({Predecessor:} 11. f4 e6 12. Nd2 Rc8 13. Ndf3 Ne4 14. Nxc6 Rxc6 15. g4 f5 16. g5 Qb6 17. Kg2 {½-½ (46) Linnemann,N (1946)-Braun,G (2186) Osnabrueck 2012}) 11... e6 {[%emt 0:00:50]} 12. Nxc6 {[%emt 0:04:07]} bxc6 {[%emt 0:00:23]} 13. Nb3 {[%emt 0:01:56]} Nd7 {[%emt 0:00:55]} 14. Bf4 {[%emt 0:02:54]} Re8 {[%emt 0:01:58]} 15. Qa6 {[%emt 0:04:28]} Qb6 {[%emt 0:08:28]} 16. Qa4 {[%emt 0:00:23]} a5 {[%emt 0:07:55]} 17. Rfc1 {[%emt 0:07:13]} Qa6 {[%emt 0:14:32]} 18. Bd6 {[%emt 0:10:44]} Bf8 {[%emt 0:15:02]} 19. Bxf8 {[%emt 0:05:55]} Rxf8 {[%emt 0:00:06][%cal Be8f8,Bf8b8,Bb8b4][%mdl 32]} 20. Rab1 {[%emt 0:01:49]} Rfb8 {[%emt 0:01:28]} 21. Nd2 {[%emt 0:02:19]} Ra7 {[%emt 0:03:21]} 22. c4 {[%emt 0:02:09]} Kg7 {[%emt 0:02:29]} 23. h4 {[%emt 0:01:08]} Nf6 {[%emt 0:02:08]} 24. Rc3 {[%emt 0:01:16]} Rb4 {[%emt 0:02:30]} 25. Qc2 {[%emt 0:00:04]} a4 {[%emt 0:00:46]} 26. a3 {[%emt 0:06:07]} Rb6 {[%emt 0:02:04]} 27. f3 {[%emt 0:00:12]} (27. Nf3 $11 {remains equal.}) 27... h5 $17 {[%emt 0:00:40]} 28. c5 {[%emt 0:00:54]} Rb8 {[%emt 0:00:28]} 29. Nf1 {[%emt 0:00:02]} Rab7 30. Ne3 {[%emt 0:02:13]} Rb3 {[%emt 0:00:54]} 31. Nd1 {[%emt 0:00:43]} Nd7 {[%emt 0:01:55] Black is more active.} 32. Rc1 {[%emt 0:02:41]} e5 {[%emt 0:10:57]} 33. Qd2 {[%emt 0:00:02]} Kg8 $1 {[%emt 0:01:07]} 34. Kf2 {[%emt 0:00:56]} Qa5 {[%emt 0:02:32]} 35. R1c2 {[%emt 0:01:54]} Qd8 {[%emt 0:00:33]} 36. Kg3 {[%emt 0:01:24]} Qf6 {[%emt 0:02:00]} 37. dxe5 {[%emt 0:00:09]} Qxe5+ ({Inferior is} 37... Nxe5 38. Qd4 $17) 38. Kf2 {[%emt 0:00:51]} (38. Qf4 $17) 38... Nf8 $19 {[%emt 0:05:14]} 39. Re3 {[%emt 0:00:43]} (39. Kg1 $142) 39... Qf6 {[%emt 0:00:43]} 40. g3 {[%emt 0:00:43]} Ne6 {[%emt 0:00:06]} 41. Rxb3 {[%emt 0:00:23]} Rxb3 {[%emt 0:00:24]} (41... axb3 $2 {is the wrong capture.} 42. Rc3 $19) 42. Rc3 {[%emt 0:00:01]} Rb5 {[%emt 0:00:24]} 43. Qc2 {[%emt 0:00:22]} Qd4+ {[%emt 0:00:39]} 44. Kg2 {[%emt 0:00:25]} Rxc5 {[%emt 0:01:23]} (44... Nxc5 45. Kf1) 45. Qe2 {[%emt 0:00:35]} Kg7 {[%emt 0:02:36]} 46. Rxc5 {[%emt 0:00:31]} Nxc5 {[%emt 0:00:08][%mdl 4096] Endgame KQN-KQN} ({Not} 46... Qxc5 47. Nc3) 47. Nc3 {[%emt 0:00:03]} Kf6 {[%emt 0:01:20]} 48. Qe8 $2 {[%emt 0:00:18] [#]} (48. Kf1) 48... Kg7 $2 {[%emt 0:03:00]} (48... Qd2+ $1 $19 49. Ne2 Ne6) 49. Qxc6 $2 {[%emt 0:00:36][%mdl 8192]} (49. Qe2 $11) 49... Nd3 {[%emt 0:02:14] ( -> ...Qf2+)} 50. Nxd5 {[%emt 0:01:42]} Qf2+ {[%emt 0:02:43]} 51. Kh3 {[%emt 0:00:01]} Qf1+ {[%emt 0:00:15]} 52. Kh2 {[%emt 0:00:06] [#]} Qe2+ $1 {[%emt 0:00:24]} 53. Kh1 {[%emt 0:01:18]} Qxf3+ {[%emt 0:00:38]} 54. Kh2 {[%emt 0:00:07]} Ne5 {[%emt 0:01:33]} (54... Qe2+ $142 55. Kg1 Ne5 56. Qc3 Qd1+ 57. Kf2 Qxd5 58. Kf1 Qd1+ 59. Kf2 Qd5 60. Ke3 Kh7 61. Ke2 Qe4+ 62. Kd2 Nf3+ 63. Kd1 Nd4 64. Qc4 Qf3+ 65. Kd2 Nb3+ 66. Kc2 Qg2+ 67. Kd3 Qxg3+ 68. Ke2 Qg4+ 69. Kd3 Qf3+ 70. Kc2 Qg2+ 71. Kd3 Qd2+ 72. Ke4 Qe1+ 73. Kd3 Qd2+ 74. Ke4 Qe1+ 75. Kd3 Qf2 76. Qd5 Qf1+ 77. Ke3 Qc1+ 78. Kd3 Nc5+ 79. Ke2 Qxb2+ 80. Kf1 Ne6 81. Qf3 Kg7 82. Qe3 Nd4 83. Qe5+ Kh7 84. Qe3 Nc2 85. Qf4 Qb3 86. Ke2 Nxa3 87. Kd2 Nc4+ 88. Ke2 Qa2+ 89. Kf3 Nb2 90. Qe3 Qe6 91. Qg5 a3 92. Qb5 Nd1 93. Kg2 Qe4+ 94. Kg1 Qe3+ 95. Kh2 Qf4+ 96. Kh3 Qf3+ 97. Kh2 Ne3 98. Qg5 a2 99. Qg3 Ng4+ 100. Qxg4 hxg4 101. Kg1 a1=Q+ 102. Kh2 Qh3#) 55. Qc5 {[%emt 0:01:02]} Qe2+ {[%emt 0:01:52]} 56. Kh1 {[%emt 0:00:18]} Qf1+ {[%emt 0:00:18]} 57. Qg1 {[%emt 0:00:01]} Qf3+ {[%emt 0:00:11]} 58. Qg2 {[%emt 0:00:01]} Qd1+ {[%emt 0:00:07]} 59. Kh2 {[%emt 0:00:30]} Nf3+ {[%emt 0:00:07]} 60. Kh3 {[%emt 0:01:10]} Qxd5 {[%emt 0:00:07] Weighted Error Value: White=0.42/Black=0.36} 0-1

[Event "13th KIIT Festival-A 2022"]
[Site "Bhubaneswar"]
[Date "2022.05.24"]
[Round "3.8"]
[White "Stupak, Kirill"]
[Black "Alekhya Mukhopadhyay"]
[Result "*"]
[ECO "B07"]
[WhiteElo "2440"]
[BlackElo "2162"]
[Annotator "TA"]
[PlyCount "41"]
[EventDate "2022.05.15"]
[EventType "swiss"]
[EventCountry "IND"]
[SourceTitle "playchess.com"]
[Source "ChessBase"]
[SourceQuality "1"]
[TimeControl "5400+30"]

{[%evp 17,41,35,39,29,25,18,19,-21,-1,-52,-43,-25,-38,-42,-37,-35,-20,-26,0,0,0,-35,-34,-37,-30,-58]} 1. d4 {[%emt 0:00:02]} Nf6 {[%emt 0:00:09]} 2. g3 {[%emt 0:00:10]} g6 {[%emt 0:00:12]} 3. Bg2 {[%emt 0:00:06]} Bg7 {[%emt 0:00:11]} 4. e4 {[%emt 0:00:04]} d6 {[%emt 0:00:17]} 5. Nc3 {[%emt 0:00:03]} O-O {[%emt 0:00:18]} 6. Nge2 {[%emt 0:00:03]} e5 {[%emt 0:00:24]} 7. O-O {[%emt 0:00:19]} Nc6 {[%emt 0:00:20]} 8. dxe5 {[%emt 0:00:06]} Nxe5 {[%emt 0:00:18]} 9. h3 {[%emt 0:00:15]} Re8 {[%emt 0:00:27]} 10. b3 {[%emt 0:00:13] B07: Pirc Defence: Miscellaneous Systems.} Rb8 {[%emt 0:01:19]} 11. a4 {[%emt 0:03:03]} b6 {[%emt 0:01:04]} 12. g4 {[%emt 0:10:05] The position is equal.} Bb7 {[%emt 0:01:31] [#]} 13. Bg5 $146 {[%emt 0:13:57]} (13. Rb1 $11) ({Predecessor:} 13. Ng3 Ned7 14. Bd2 Nc5 15. Re1 a5 16. f4 Nfd7 17. Rc1 Bd4+ 18. Kh2 Qh4 19. Qf3 {0-1 (51) Stupak,K (2561)-Jojua,D (2563) Minsk 2019}) 13... h6 $15 {[%emt 0:06:58]} 14. Bh4 {[%emt 0:08:09][%cal Bg5h4,Bh4g3,Bg3h2][%mdl 32]} g5 {[%emt 0:10:19]} 15. Bg3 {[%emt 0:00:24]} Ng6 {[%cal Rf6e4]} 16. Qd3 {[%emt 0:02:40]} h5 {[%emt 0:01:51]} 17. f3 {[%emt 0:02:00]} h4 {[%emt 0:02:02]} (17... d5 $5 {[%cal Rd5e4]}) 18. Bh2 {[%emt 0:01:48]} Nd7 {[%emt 0:05:49]} 19. Rae1 {[%emt 0:04:36]} Nc5 {[%emt 0:05:22]} 20. Qd2 {[%emt 0:00:35]} Ne6 {[%emt 0:01:36]} 21. Nd5 {[%emt 0:07:29] Weighted Error Value: White=0.14 (very precise) /Black=0.03 (flawless)} *